Workbook

Sheet Tabelle1
D2: Canasta Scorelist | H2: =TODAY() -> 2014-03-23
D4: Mädels | F4: Diff. | G4: Männers
B6: Nr.
B7: 1 | C7: C | D7: 1605 | E7: =IF(D7=0,"",D7) -> 1605 | F7: =IF(OR(D7=0,G7=0),"",H7-E7) -> -1060 | G7: 545 | H7: =IF(G7=0,"",G7) -> 545
B8: 2 | D8: 870 | E8: =IF(D8=0,"",D8+E7) -> 2475 | F8: =IF(OR(D8=0,G8=0),"",H8-E8) -> -1305 | G8: 625 | H8: =IF(G8=0,"",G8+H7) -> 1170
B9: 3 | D9: 1265 | E9: =IF(D9=0,"",D9+E8) -> 3740 | F9: =IF(OR(D9=0,G9=0),"",H9-E9) -> -1880 | G9: 690 | H9: =IF(G9=0,"",G9+H8) -> 1860
B10: 4 | D10: 550 | E10: 4290 | F10: -1865 | G10: 565 | H10: 2425
B11: 5 | C11: C | D11: -395 | E11: 3895 | F11: -440 | G11: 1030 | H11: 3455
B12: 6 | D12: -420 | E12: 3475 | F12: 710 | G12: 730 | H12: 4185
B13: 7 | D13: 1475 | E13: 4950 | F13: -1005 | G13: -240 | H13: 3945
B14: 8 | D14: 780 | E14: 5730 | F14: -1065 | G14: 720 | H14: 4665
B15: 9 | C15: C | D15: 930 | E15: 6660 | F15: -710 | G15: 1285 | H15: 5950
B16: 10 | D16: 760 | E16: 7420 | F16: -670 | G16: 800 | H16: 6750
B17: 11 | D17: 735 | E17: 8155 | F17: -1895 | G17: -490 | H17: 6260
B18: 12 | D18: 1185 | E18: 9340 | F18: -2010 | G18: 1070 | H18: 7330
B19: 13 | C19: C | D19: 940 | E19: =IF(D19=0,"",D19+E18) -> 10280 | F19: -3340 | G19: -390 | H19: =IF(G19=0,"",G19+H18) -> 6940
B20: 14 | D20: 1265 | E20: 11545 | F20: -4170 | G20: 435 | H20: 7375
B21: 15 | D21: 555 | E21: 12100 | F21: -5030 | G21: -305 | H21: 7070
B22: 16 | D22: 1300 | E22: 13400 | F22: -5260 | G22: 1070 | H22: 8140
B23: 17 | C23: C | D23: 800 | E23: 14200 | F23: -4725 | G23: 1335 | H23: 9475
B24: 18 | D24: 1085 | E24: 15285 | F24: -5035 | G24: 775 | H24: 10250
B25: 19 | D25: -360 | E25: 14925 | F25: -3965 | G25: 710 | H25: 10960
B26: 20 | D26: 335 | E26: 15260 | F26: -3290 | G26: 1010 | H26: 11970
B27: 21 | C27: C | D27: 1165 | E27: 16425 | F27: -3245 | G27: 1210 | H27: 13180 | I27: x
B28: =B27+1 -> 22 | D28: 935 | E28: 17360 | F28: -2600 | G28: 1580 | H28: 14760
B29: =B28+1 -> 23 | D29: 1260 | E29: 18620 | F29: -3175 | G29: 685 | H29: 15445
B30: 24 | D30: 980 | E30: 19600 | F30: -3580 | G30: 575 | H30: 16020
B31: 25 | C31: C | D31: 830 | E31: =IF(D31=0,"",D31+E30) -> 20430 | F31: -3620 | G31: 790 | H31: =IF(G31=0,"",G31+H30) -> 16810 | I31: x
B32: =B31+1 -> 26 | D32: 1385 | E32: =IF(D32=0,"",D32+E31) -> 21815 | F32: =IF(OR(D32=0,G32=0),"",H32-E32) -> -4235 | G32: 770 | H32: =IF(G32=0,"",G32+H31) -> 17580
B33: =B32+1 -> 27 | D33: 765 | E33: 22580 | F33: -5370 | G33: -370 | H33: 17210
B34: =B33+1 -> 28 | D34: 575 | E34: 23155 | F34: -5050 | G34: 895 | H34: 18105
B35: =B34+1 -> 29 | C35: C | D35: 825 | E35: =IF(D35=0,"",D35+E34) -> 23980 | F35: -6105 | G35: -230 | H35: =IF(G35=0,"",G35+H34) -> 17875 | I35: x
B36: =B35+1 -> 30 | D36: 600 | E36: =IF(D36=0,"",D36+E35) -> 24580 | F36: =IF(OR(D36=0,G36=0),"",H36-E36) -> -5585 | G36: 1120 | H36: =IF(G36=0,"",G36+H35) -> 18995
B37: =B36+1 -> 31 | D37: 470 | E37: 25050 | F37: -5205 | G37: 850 | H37: 19845
B38: =B37+1 -> 32 | D38: 1095 | E38: 26145 | F38: -5205 | G38: 1095 | H38: 20940
B39: =B38+1 -> 33 | C39: C | D39: 1030 | E39: =IF(D39=0,"",D39+E38) -> 27175 | F39: -5530 | G39: 705 | H39: =IF(G39=0,"",G39+H38) -> 21645
B40: =B39+1 -> 34 | D40: 790 | E40: =IF(D40=0,"",D40+E39) -> 27965 | F40: =IF(OR(D40=0,G40=0),"",H40-E40) -> -5525 | G40: 795 | H40: =IF(G40=0,"",G40+H39) -> 22440
B41: =B40+1 -> 35 | D41: 925 | E41: 28890 | F41: -5665 | G41: 785 | H41: 23225
B42: =B41+1 -> 36 | D42: 1025 | E42: 29915 | F42: -5790 | G42: 900 | H42: 24125
B43: =B42+1 -> 37 | C43: C | D43: 535 | E43: =IF(D43=0,"",D43+E42) -> 30450 | F43: -5425 | G43: 900 | H43: =IF(G43=0,"",G43+H42) -> 25025
B45: Platz | E45: =IF(F7="","",IF(E49<0,"1.","2.")) -> 2. | H45: =IF(F7="","",IF(E49<0,"2.","1.")) -> 1.
D47: MinusSp. | E47: =COUNTIF(D:D,"<0") -> 3 | G47: MinusSp. | H47: =COUNTIF(G:G,"<0") -> 6
E49: =INDEX(F:F,E50-1) -> 0
E50: =MATCH("",F:F,-1) -> 4

Sheet Tabelle2

Sheet Tabelle3
